Workbook

Sheet Mission Vision & Values
A1: Mission
A6: Vision
A11: Values

Sheet Broad Salary Considerations
A1: Providers | B1: Annual Salary | C1: FTE | D1: Fringe Rate | E1: Fringe | F1: Total Comp | G1: Hourly | H1: Daily | I1: Weekly | J1: Monthy
A2: Provider I | B2: 85000 | C2: 1 | D2: 0.25 | E2: =(B2*D2) -> 21250 | F2: =SUM(B2+E2) -> 106250 | G2: =F2/2080 -> 51.08173077 | H2: =F2/260 -> 408.6538462 | I2: =F2/52 -> 2043.269231 | J2: =F2/12 -> 8854.166667
A3: Provider II | B3: 75000 | C3: 1 | D3: 0.25 | E3: =(B3*D3) -> 18750 | F3: =SUM(B3+E3) -> 93750 | G3: =F3/2080 -> 45.07211538 | H3: =F3/260 -> 360.5769231 | I3: =F3/52 -> 1802.884615 | J3: =F3/12 -> 7812.5
A4: Provider III | B4: 75000 | C4: 1 | D4: 0.25 | E4: 18750 | F4: 93750 | G4: =F4/2080 -> 45.07211538 | H4: =F4/260 -> 360.5769231 | I4: 1802.884615 | J4: =F4/12 -> 7812.5
A5: Receptionist | B5: 38000 | C5: 1 | D5: 0.25 | E5: 9500 | F5: 47500 | G5: 22.83653846 | H5: 182.6923077 | I5: 913.4615385 | J5: 3958.333333
A6: Part time receptionist/biller | B6: 38000 | C6: 1 | D6: 0.05 | E6: 1900 | F6: =SUM(B6+E6) -> 39900 | G6: 19.18269231 | H6: 153.4615385 | I6: 767.3076923 | J6: 3325
F9: =SUM(F2:F6) -> 381150 | G9: 183.2451923 | H9: 1465.961538 | I9: =SUM(I2:I6) -> 7329.807692 | J9: =SUM(J2:J6) -> 31762.5
L16: **This sheet makes broad assumptions: 2,080 working hours per year with a 30% fringe rate. You may change these values to be more precise (eg fringe may need to increase)
L17: A fringe rate, or benefit rate, is the cost of an employee's benefits divided by the wages paid to an employee for the hours working on the job.
L18: What's included in fringe? To learn more: https://www.zenefits.com/workest/what-are-fringe-benefits-small-business-explainer/

Sheet Holiday
A1: Holiday List
A3: New Year’s Day – January 1st
A4: Martin Luther King Jr’s birthday –January 20th
A5: Washington’s birthday (President’s Day) – February 17th
A6: Memorial Day –May 25th
A7: Independence Day – July 4th
A8: Labor Day – September 7th
A9: Columbus Day – October 12th
A10: Veterans Day – November 11th
A11: Thanksgiving Day – November 26th
A12: Christmas Day – December 25th

Sheet Floor Plan

Sheet Billing

Sheet Scheduling

Sheet COGS

Sheet Sheet6

Sheet Monthly Costs

Sheet Bank Loan and Interest

Sheet P&L Overall
